bitfinex-derivatives/quotes_ETHF0:USTF0_20250427
["timestamp","ask_amount","ask_price","bid_price","bid_amount"]
[1745717298149,3.2078,1827.9,1827.7,4.909]
[1745717298340,2.8271,1827.8,1827.7,6.00281]
[1745717300137,2.8271,1827.8,1827.7,9.05541]
[1745717301347,3.2078,1828.3,1827.8,2.73438]
[1745717301647,3.0789,1828.2,1828.1,1.09357]
[1745717301837,3.0789,1828.2,1827.8,3.2078]
[1745717302037,4.17244,1828.2,1827.8,3.0526]
[1745717302241,4.17244,1828.2,1827.9,1.09369]
[1745717302443,1.09358,1828.1,1827.7,4.909]
[1745717302646,3.0482,1828.0,1827.9,1.09367]
[1745717302838,3.0482,1828.0,1827.8,1.09375]
[1745717303150,3.0482,1828.0,1827.8,1.09374]
[1745717303342,4.14187,1828.0,1827.7,4.909]
[1745717303535,4.14187,1828.0,1827.7,6.00278]
[1745717303943,3.0482,1828.0,1827.8,1.09372]
[1745717304243,3.0482,1828.0,1827.9,1.09369]
[1745717304445,3.0482,1828.0,1827.8,1.09371]
[1745717304647,4.14184,1828.0,1827.8,1.09371]
[1745717304842,3.0482,1828.0,1827.8,1.09371]
[1745717305143,3.0482,1828.0,1827.6,8.0351]
[1745717305144,3.2078,1828.3,1827.7,2.73444]
[1745717305338,3.0482,1828.0,1827.9,1.09369]
[1745717305939,3.2078,1828.3,1828.2,1.09351]
[1745717306549,3.2078,1828.3,1828.1,1.09352]
[1745717306747,3.2078,1828.3,1828.2,1.09351]
[1745717307641,2.9214,1828.5,1828.4,1.09339]
[1745717307840,2.8824,1828.6,1828.5,1.09333]
[1745717308038,3.2078,1828.8,1828.7,1.09321]
[1745717308574,6.2047,1829.1,1829.0,1.09303]
[1745717308746,6.2047,1829.1,1828.9,1.09307]
[1745717309351,6.2047,1829.1,1829.0,1.09303]
[1745717309549,6.1197,1829.5,1829.3,1.09282]
[1745717309750,6.1197,1829.5,1828.9,2.73271]
[1745717310051,6.1197,1829.5,1829.0,3.1595]
[1745717310250,6.1197,1829.5,1829.3,1.09284]
[1745717310549,7.21245,1829.5,1829.2,1.09288]
[1745717310749,7.21245,1829.5,1829.3,1.09284]
[1745717311047,6.1197,1829.5,1829.3,1.09284]
[1745717311249,6.1197,1829.5,1829.0,3.1595]
[1745717311446,6.1197,1829.5,1829.3,1.09282]
[1745717311652,6.1197,1829.5,1829.4,1.09279]
[1745717312256,3.2078,1829.5,1829.4,1.09279]
[1745717313747,3.1038,1830.0,1829.9,1.09249]
[1745717313947,6.3423,1830.1,1829.7,4.81]
[1745717314146,6.3423,1830.1,1830.0,1.09243]
[1745717314643,6.3423,1830.1,1829.7,4.81]
[1745717314844,1.09243,1830.0,1829.6,2.9416]
[1745717315052,6.3423,1830.1,1829.6,2.9416]
[1745717315053,3.2078,1829.8,1829.6,1.09263]
[1745717315350,3.2078,1829.8,1829.7,1.09261]
[1745717316844,3.2078,1830.2,1829.6,5.93948]
[1745717317057,3.2078,1830.2,1830.1,1.09237]
[1745717317651,3.1038,1830.4,1830.1,4.06963]
[1745717317852,3.1038,1830.4,1830.2,1.08655324]
[1745717318054,3.2078,1830.3,1830.1,4.06964]
[1745717318250,4.19601,1830.4,1830.1,4.06964]
[1745717318649,6.2103,1830.5,1830.3,1.09224]
[1745717319050,7.30244,1830.5,1830.3,1.09224]
[1745717319249,3.2078,1830.5,1830.4,1.09219]
[1745717319650,4.29997,1830.5,1830.3,1.09224]
[1745717319856,4.29997,1830.5,1830.2,2.9773]
[1745717320049,4.29997,1830.5,1830.0,5.9014]
[1745717320050,1.09225,1830.3,1830.0,5.9014]
[1745717320251,3.2078,1830.3,1830.0,4.809]
[1745717320456,4.30009,1830.3,1830.0,5.90139]
[1745717320850,4.30017,1830.1,1830.0,4.809]
[1745717321046,3.2078,1830.1,1830.0,5.90143]
[1745717321297,4.29998,1830.5,1830.2,1.09228]
[1745717321453,3.2078,1830.5,1830.1,1.09235]
[1745717321656,1.09226,1830.3,1830.1,1.09234]
[1745717321856,1.09226,1830.3,1830.0,5.90139]
[1745717322154,3.2078,1830.3,1830.1,1.09237]
[1745717322354,1.09223,1830.4,1830.2,1.09231]
[1745717322656,3.2078,1830.5,1830.0,4.809]
[1745717322851,1.09228,1830.3,1830.0,4.809]
[1745717323052,4.30008,1830.3,1830.0,4.809]
[1745717323251,4.30008,1830.3,1830.1,1.09237]
[1745717323447,1.09252,1829.9,1829.7,1.09259]
[1745717323649,3.2078,1829.9,1829.6,1.09265]
[1745717323844,3.2078,1829.9,1829.4,6.3133]
[1745717324054,8.93485,1830.2,1829.3,5.90082]
[1745717324055,4.3005,1829.6,1829.3,5.90082]
[1745717324251,3.1688,1829.5,1829.4,1.09279]
[1745717324654,3.1688,1829.5,1829.4,4.16549]
[1745717325256,3.2078,1829.6,1829.5,1.09273]
[1745717325584,3.2078,1829.6,1829.5,4.16543]
[1745717325756,4.3003,1829.9,1829.6,1.09262]
[1745717325951,3.1688,1829.8,1829.6,1.09262]
[1745717326256,1.09261,1829.7,1829.5,4.16539]
[1745717326453,7.46929,1829.6,1829.3,8.97351]
[1745717326760,1.09279,1829.4,1829.3,4.808]
[1745717326946,6.3766,1829.6,1829.3,4.808]
[1745717327151,6.3766,1829.6,1829.4,1.09279]
[1745717327363,3.1688,1829.6,1829.4,4.02219]
[1745717327956,3.1688,1829.6,1829.5,1.09273]
[1745717328145,3.2078,1829.8,1829.7,1.09261]
[1745717328355,2.9714,1830.0,1829.5,2.9294]
[1745717328655,2.9714,1830.0,1829.9,1.09249]
[1745717329253,2.9714,1830.0,1829.8,7.22971]
[1745717329453,2.9714,1830.0,1829.8,2.9294]
[1745717329652,4.06387,1830.0,1829.7,5.90057]
[1745717329910,4.30032,1829.9,1829.7,4.808]
[1745717330059,2.8986,1829.8,1829.7,5.90061]
[1745717330652,3.99116,1829.8,1829.6,1.09263]
[1745717330992,3.99117,1829.8,1829.6,1.09264]
[1745717331261,1.09262,1829.7,1829.5,5.9007]
[1745717331454,6.1064,1829.6,1829.2,4.808]
[1745717331660,7.19911,1829.6,1829.3,1.09281]
[1745717332563,6.1064,1829.6,1829.2,7.7289]
[1745717332754,2.8986,1829.6,1829.5,1.09273]
[1745717332953,9.1198,1829.9,1829.4,2.73197]
[1745717333258,2.8893,1829.8,1829.6,1.09263]
[1745717333459,3.98186,1829.8,1829.6,1.09263]
[1745717333761,3.2078,1829.7,1829.3,1.09282]
[1745717333954,3.98199,1829.6,1829.3,1.09282]
[1745717334207,3.98199,1829.6,1829.4,1.09278]
[1745717334357,2.8893,1829.6,1829.5,1.09273]
[1745717334557,4.30027,1830.0,1829.7,1.09259]
[1745717334757,4.30027,1830.0,1829.6,1.09264]
[1745717334758,1.09249,1829.9,1829.6,1.09264]
[1745717334959,3.98179,1829.9,1829.7,1.0926]
[1745717335168,3.2078,1829.8,1829.7,1.0926]
[1745717335357,6.0971,1829.8,1829.7,1.0926]
[1745717336067,2.8893,1829.8,1829.7,1.0926]
[1745717337162,6.0971,1829.8,1829.2,4.808]
[1745717337361,3.2078,1829.6,1829.4,1.09274]
[1745717337667,3.0613,1829.5,1829.4,1.09274]
[1745717340567,3.0613,1829.5,1829.3,1.0928]
[1745717341167,3.0613,1829.5,1829.2,7.8689]
[1745717341365,3.0613,1829.5,1829.3,1.09282]
[1745717341667,4.15407,1829.5,1829.1,3.2078]
[1745717341965,2.984,1829.4,1829.3,1.09283]
[1745717342164,6.0089,1829.4,1829.3,1.09283]
[1745717342821,6.0089,1829.4,1829.2,4.27818]
[1745717342967,6.0089,1829.4,1828.8,68.87583]
[1745717342968,1.09301,1829.1,1828.8,5.86912]
[1745717343170,6.2327,1829.0,1828.8,4.776]
[1745717343363,6.2327,1829.0,1828.9,1.09308]
[1745717343558,6.2327,1829.0,1828.8,4.776]
[1745717343876,6.2327,1829.0,1828.9,1.09309]
[1745717344968,13.1966,1829.4,1829.2,1.09288]
[1745717345168,6.1918,1829.4,1828.9,3.1078]
[1745717345369,6.1918,1829.4,1828.9,5.84045]
[1745717345567,6.1918,1829.4,1829.2,1.09289]
[1745717345979,11.1918,1829.4,1828.8,4.776]
[1745717346165,3.2078,1829.0,1828.8,5.86911]
[1745717346465,1.09309,1828.9,1828.8,4.776]
[1745717346671,1.09315,1828.8,1828.6,4.30104]
[1745717346870,2.9838,1828.7,1828.6,4.30104]
[1745717347671,4.07701,1828.7,1828.4,1.09333]
[1745717347872,6.1368,1828.7,1828.2,4.777]
[1745717348070,6.1368,1828.7,1828.6,1.09327]
[1745717348669,6.1368,1828.7,1828.5,1.09329]
[1745717348870,6.1368,1828.7,1828.4,1.09333]
[1745717349213,7.23004,1828.7,1828.4,1.09333]
[1745717349357,6.1368,1828.7,1828.4,1.09333]
[1745717349564,6.1368,1828.7,1828.2,4.777]
[1745717349764,7.23003,1828.7,1828.4,1.09335]
[1745717349970,6.1368,1828.7,1828.2,4.777]
[1745717350172,3.2078,1828.5,1828.3,1.09341]
[1745717350471,2.9207,1828.4,1828.3,1.09341]
[1745717350972,2.9207,1828.4,1828.3,4.23931]
[1745717351569,6.3608,1828.7,1828.6,1.09327]
[1745717352573,3.2078,1828.7,1828.6,1.09327]
[1745717352775,3.2078,1829.0,1828.9,1.09309]
[1745717353673,3.2078,1829.0,1828.7,3.1211]
[1745717353873,2.8883,1828.9,1828.8,1.09315]
[1745717354670,2.8883,1828.9,1828.7,4.21426]
[1745717354875,2.8883,1828.9,1828.6,4.778]
[1745717355072,3.98141,1828.9,1828.6,5.87122]
[1745717355373,1.09316,1828.8,1828.6,4.778]
[1745717355744,4.30101,1828.7,1828.4,1.09337]
[1745717355975,4.30117,1828.5,1828.3,4.778]
[1745717356161,3.1815,1828.4,1828.3,1.09343]
[1745717356366,3.1815,1828.4,1828.0,72.441]
[1745717356771,3.1815,1828.4,1828.3,1.09345]
[1745717357165,3.1815,1828.4,1828.0,75.17502]
[1745717357166,3.1035,1828.6,1828.4,1.09339]
[1745717357382,5.912,1828.8,1828.2,2.73377]
[1745717357383,3.0846,1828.7,1828.6,1.09327]
[1745717358377,3.2078,1828.9,1828.7,1.09316]
[1745717358674,3.0846,1828.8,1828.7,1.09316]
[1745717359868,3.0846,1828.8,1828.7,4.27126]
[1745717361077,6.2868,1829.1,1828.9,1.09307]
[1745717361375,3.0707,1829.0,1828.9,1.09307]
[1745717361581,8.53439291,1829.3,1829.2,1.09291]
[1745717361780,11.60509291,1829.3,1829.2,1.09291]
[1745717362475,6.2995,1829.7,1829.1,2.73242]
[1745717362676,6.2995,1829.7,1828.9,7.8359]
[1745717362677,3.0707,1829.6,1829.2,6.2647]
[1745717362875,1.09274,1829.5,1829.2,4.14975]
[1745717363081,3.0707,1829.4,1829.3,1.09285]
[1745717364271,6.2995,1829.7,1829.6,1.09267]
[1745717364577,3.1577,1829.7,1829.6,1.09267]
[1745717364972,8.53439291,1829.8,1829.7,1.09261]
[1745717365179,5.32659291,1829.8,1829.7,1.09261]
[1745717365576,8.34129291,1829.8,1829.6,1.09264]
[1745717365873,8.34129291,1829.8,1829.7,1.09261]
[1745717366179,3.0147,1829.8,1829.4,3.2023]
[1745717366366,3.0147,1829.8,1829.7,1.09261]
[1745717367775,3.0147,1829.8,1829.6,1.09265]
[1745717367978,3.0147,1829.8,1829.7,1.09261]
[1745717368277,3.0147,1829.8,1829.4,3.2023]
[1745717368479,3.0147,1829.8,1829.7,1.09261]
[1745717369470,7.31507,1829.8,1829.3,7.9858]
[1745717369866,7.31507,1829.8,1829.6,1.09266]
[1745717370071,7.31507,1829.8,1829.4,3.0323]
[1745717370277,7.31507,1829.8,1829.5,1.09271]
[1745717370479,6.2225,1829.8,1829.4,3.0323]
[1745717370675,7.31508,1829.8,1829.5,1.0927]
[1745717371079,7.31508,1829.8,1829.6,1.09267]
[1745717371277,6.2225,1829.8,1829.6,1.09267]
[1745717371785,1.09263,1829.7,1829.5,1.0927]
[1745717372083,3.0613,1829.6,1829.5,1.0927]
[1745717373279,6.2691,1829.6,1829.3,4.778]
[1745717373478,6.2691,1829.6,1829.4,1.09276]
[1745717373678,1.09273,1829.5,1829.3,4.778]
[1745717373880,3.2337,1829.4,1829.3,5.87082]
[1745717374777,3.2078,1829.8,1829.3,7.51006]
[1745717374986,3.2337,1829.8,1829.7,1.09261]
[1745717378685,3.2337,1829.8,1829.6,4.17412]
[1745717378985,3.2337,1829.8,1829.6,1.09262]
[1745717379178,4.32625,1829.8,1829.6,1.09262]
[1745717379381,3.2337,1829.8,1829.6,1.09262]
[1745717379587,3.2337,1829.8,1829.7,1.09261]
[1745717379782,3.2337,1829.8,1829.5,1.09273]
[1745717379783,7.53409,1829.8,1829.5,1.09273]
[1745717380082,7.53409,1829.8,1829.4,3.0537]
[1745717380279,7.53409,1829.8,1829.5,1.09273]
[1745717380486,7.53409,1829.8,1829.6,1.09267]
[1745717380683,7.53409,1829.8,1829.5,1.09273]
[1745717380884,7.53409,1829.8,1829.6,1.09266]
[1745717381086,7.53409,1829.8,1829.4,3.0537]
[1745717381285,7.53409,1829.8,1829.6,1.09265]
[1745717381686,7.53409,1829.8,1829.3,7.9858]
[1745717381687,3.2337,1829.8,1829.7,1.09261]
[1745717382736,6.4234,1830.0,1829.9,1.09249]
[1745717383885,9.3855,1830.0,1829.9,1.09249]
[1745717384080,3.2078,1830.0,1829.9,1.09249]
[1745717384588,5.32659291,1830.1,1830.0,1.09243]
[1745717386085,5.32659291,1830.1,1829.8,3.0674]
[1745717386283,5.32659291,1830.1,1829.7,7.9808]
[1745717386492,8.33279291,1830.1,1829.9,1.09248]
[1745717386688,8.33279291,1830.1,1829.8,1.0925]
[1745717386689,3.0062,1830.1,1829.8,1.0925]
[1745717387031,1.09246,1830.0,1829.7,9.07338]
[1745717387191,3.0935,1829.9,1829.7,9.07338]
[1745717387396,3.0935,1829.9,1829.8,1.09255]
[1745717387589,3.0935,1829.9,1829.7,4.773]
[1745717387786,3.2078,1829.8,1829.7,5.86561]
[1745717388105,3.0935,1829.9,1829.8,1.09255]
[1745717388594,3.2078,1830.2,1830.1,1.09237]
[1745717389386,5.32659291,1830.5,1830.4,1.09219]
[1745717390085,5.32659291,1830.5,1830.1,4.773]
[1745717390286,5.32659291,1830.5,1830.4,1.09219]
[1745717392487,5.32659291,1830.5,1830.4,4.18979]
[1745717394794,5.32659291,1830.5,1830.4,1.09219]
[1745717395592,8.82879698,1830.8,1830.3,3.2078]
[1745717395593,9.3927,1830.9,1830.7,1.092]
[1745717395792,9.3927,1830.9,1830.6,1.09205]
[1745717396089,1.09208,1830.6,1830.3,1.09223]
[1745717396299,3.2078,1830.4,1830.3,1.09225]
[1745717396689,8.2078,1830.4,1830.3,1.09225]
[1745717397297,3.2078,1830.4,1830.3,1.09225]
[1745717399591,3.2078,1830.4,1830.0,9.06088]
[1745717399592,3.2078,1830.4,1830.0,3.2078]
[1745717399789,6.39,1830.3,1830.2,1.09231]
[1745717399992,6.39,1830.3,1829.9,2.73117]
[1745717399993,7.48227,1830.3,1829.8,4.765]
[1745717400195,6.39,1830.3,1830.2,1.09231]
[1745717400399,9.5978,1830.3,1830.2,1.09231]
[1745717400598,14.5978,1830.3,1830.2,1.09231]
[1745717400994,9.5978,1830.3,1830.2,1.09231]
[1745717404195,9.5978,1830.3,1830.1,1.09233]
[1745717404404,3.2377,1830.2,1830.1,1.09233]
[1745717404703,3.2377,1830.2,1830.1,1.09237]
[1745717408010,9.33001,1830.2,1830.0,1.09242]
[1745717408203,4.30017,1830.1,1830.0,1.09242]
[1745717408507,4.30017,1830.1,1829.8,1.09252]
[1745717408508,1.09247,1830.0,1829.8,1.09252]
[1745717408705,6.1577,1829.9,1829.8,1.09255]
[1745717412509,5.32659291,1830.6,1830.5,1.09213]
[1745717414013,3.2141,1830.7,1830.6,1.09207]
[1745717415110,3.2141,1830.7,1830.4,3.0267]
[1745717415308,3.2141,1830.7,1830.6,1.09207]
[1745717415514,6.4265,1830.7,1830.6,1.09207]
[1745717415715,6.4265,1830.7,1830.4,3.0267]
[1745717415910,3.2078,1830.6,1830.5,1.09209]
[1745717416110,6.4202,1830.6,1830.5,1.09209]
[1745717417005,10.59455638,1830.8,1830.7,1.09201]
[1745717417210,10.59455638,1830.8,1830.7,4.29981]
[1745717417514,3.2124,1831.0,1830.9,1.0919]
[1745717417811,8.55273659,1831.1,1830.8,2.9746]
[1745717418015,5.34493659,1831.1,1831.0,1.09184]
[1745717418507,5.34493659,1831.1,1831.0,6.09184]
[1745717418707,5.34493659,1831.1,1831.0,4.11764]
[1745717420117,5.34493659,1831.1,1831.0,1.09184]
[1745717420415,8.47503659,1831.1,1830.9,1.09186]
[1745717420618,11.71513659,1831.1,1830.7,7.9728]
[1745717420818,1.09186,1831.0,1830.7,9.06477]
[1745717421016,2.987,1831.0,1830.7,5.85697]
[1745717421219,3.1402,1830.9,1830.7,5.85699]
[1745717421521,3.1402,1830.9,1830.5,1.09212]
[1745717421522,3.2078,1830.8,1830.5,1.09212]
[1745717421704,3.1402,1830.7,1830.5,1.09208]
[1745717422014,3.1402,1830.7,1830.4,7.7898]
[1745717422215,3.1402,1830.7,1830.6,1.09207]
[1745717423415,2.987,1831.0,1830.9,1.0919]
[1745717423716,6.1272,1831.0,1830.5,2.73034]
[1745717423911,6.1272,1831.0,1830.9,1.0919]
[1745717424709,3.1402,1831.0,1830.9,1.0919]
[1745717425212,3.1402,1831.0,1830.8,1.09192]
[1745717425420,3.1402,1831.0,1830.9,1.0919]
[1745717427719,8.55273659,1831.3,1831.2,1.09172]
[1745717428014,11.58203659,1831.4,1831.3,1.09166]
[1745717428220,12.67363659,1831.4,1831.2,1.09167]
[1745717428413,11.58203659,1831.4,1831.3,1.09166]
[1745717428823,8.51223659,1831.4,1831.3,1.09166]
[1745717429012,11.92363659,1831.4,1831.3,1.09166]
[1745717429915,8.75633659,1831.4,1831.3,1.09166]
[1745717431825,3.4114,1831.4,1831.3,1.09166]
[1745717432355,6.6354,1831.6,1831.5,1.09154]
[1745717433224,7.72691,1831.6,1831.4,1.09158]
[1745717433420,11.10682,1831.6,1831.0,3.2078]
[1745717433613,1.09188,1831.0,1830.8,7.9628]
[1745717433811,3.153,1830.9,1830.8,1.09193]
[1745717434016,3.2078,1831.1,1831.0,1.09184]
[1745717434220,6.3608,1831.3,1830.7,6.11759]
[1745717434453,4.24467,1831.3,1831.1,1.09173]
[1745717434618,3.153,1831.3,1831.2,1.09172]
[1745717434822,6.3608,1831.3,1831.2,1.09172]
[1745717435034,3.153,1831.3,1831.2,1.09172]
[1745717435926,3.2078,1831.5,1830.9,8.1416]
[1745717436226,5.34493659,1831.5,1831.4,1.0916]
[1745717436820,5.34493659,1831.5,1831.3,4.39573]
[1745717437019,11.87853659,1831.5,1831.4,1.0916]
[1745717437214,11.87853659,1831.5,1831.3,3.3041]
[1745717437417,8.67073659,1831.5,1831.3,3.3041]
[1745717437717,8.67073659,1831.5,1831.4,1.0916]
[1745717438628,9.76229659,1831.5,1831.3,4.39573]
[1745717438856,9.76229659,1831.5,1831.3,1.09163]
[1745717439030,9.76229659,1831.5,1831.2,1.09171]
[1745717439327,3.2078,1831.4,1831.1,1.09178]
[1745717439523,6.6252,1831.3,1831.2,1.09172]
[1745717439723,3.4174,1831.3,1831.2,1.09172]
[1745717440116,14.85349212,1831.6,1831.0,3.2464]
[1745717440117,7.72691,1831.6,1831.3,1.09162]
[1745717440316,4.50895,1831.5,1831.3,1.09162]
[1745717440521,3.4174,1831.5,1831.3,1.09162]
[1745717440721,4.50894,1831.5,1831.3,1.09162]
[1745717440922,4.50894,1831.5,1830.8,3.1452]
[1745717440923,1.09166,1831.3,1830.8,3.1452]
[1745717441120,3.2078,1831.1,1830.7,1.09198]
[1745717441430,3.4174,1831.0,1830.7,3.2464]
[1745717441846,3.4174,1831.0,1830.7,4.3384]
[1745717442060,4.50927,1831.0,1830.8,1.09195]
[1745717442227,3.4174,1831.0,1830.9,1.0919]
[1745717442926,3.1443,1831.4,1830.7,3.2464]
[1745717443139,4.29961,1831.1,1830.9,1.09185]
[1745717443329,3.2265,1831.0,1830.9,1.09185]
[1745717444029,3.2078,1831.1,1831.0,1.09184]
[1745717444624,4.29958,1831.1,1830.8,1.0919]
[1745717444829,3.2078,1831.1,1831.0,1.09184]
[1745717445029,3.2265,1831.3,1831.2,1.09172]
[1745717445257,3.2078,1831.5,1831.0,7.9618]
[1745717445425,1.0916,1831.4,1831.2,3.2078]
[1745717445724,3.2078,1831.4,1831.0,4.754]
[1745717445926,3.2078,1831.2,1830.7,4.754]
[1745717446126,4.42811,1831.1,1830.7,4.754]
[1745717446428,1.09184,1831.0,1830.8,3.2968]
[1745717446734,3.3363,1830.9,1830.8,3.2968]
[1745717446919,4.4282,1830.9,1830.8,3.2968]
[1745717447127,3.2078,1831.4,1831.0,1.09179]
[1745717447435,7.80772,1831.5,1830.8,7.59652]
[1745717447436,1.09181,1831.1,1830.8,7.59652]
[1745717447630,3.3363,1831.0,1830.9,3.2968]
[1745717447933,4.42814,1831.0,1830.7,5.84596]
[1745717448134,4.42815,1831.0,1830.8,1.09194]
[1745717448333,4.42815,1831.0,1830.8,4.41174]
[1745717448627,3.3363,1831.0,1830.9,1.0919]
[1745717448836,3.3363,1831.0,1830.9,4.4117]
[1745717449031,3.3363,1831.0,1830.9,3.3198]
[1745717449533,4.42814,1831.0,1830.9,3.3198]
[1745717449831,1.09213,1830.5,1830.4,3.2078]
[1745717450129,1.09213,1830.5,1830.4,3.3198]
[1745717450436,1.09211,1830.6,1830.4,3.3198]
[1745717450730,1.09213,1830.5,1830.4,3.3198]
[1745717450939,1.09216,1830.5,1830.2,3.2078]
[1745717451142,3.2853,1830.4,1830.3,1.09225]
[1745717451336,3.2853,1830.4,1830.2,7.61987]
[1745717451644,1.09225,1830.3,1830.2,3.3198]
[1745717451837,7.58532,1830.4,1830.2,3.3198]
[1745717452031,3.2853,1830.4,1830.2,4.41208]
[1745717452627,3.2853,1830.4,1830.3,1.09225]
[1745717452833,3.2853,1830.4,1830.2,3.3198]
[1745717453034,7.67679,1830.6,1830.4,1.09215]
[1745717453235,3.3769,1830.6,1830.5,1.09213]
[1745717453630,6.653,1830.6,1830.4,1.09216]
[1745717453833,7.74511,1830.6,1830.4,1.09219]
[1745717454336,3.2078,1830.5,1830.2,3.3198]
[1745717454534,1.09225,1830.3,1830.2,3.3198]
[1745717454736,1.09225,1830.3,1830.0,9.0542]
[1745717454942,4.39442,1830.2,1830.0,9.0542]
[1745717455333,4.39442,1830.2,1830.0,4.30023]
[1745717455541,1.09237,1830.1,1830.0,3.2078]
[1745717455737,1.09237,1830.1,1829.4,7.9628]
[1745717455738,6.5099,1830.1,1829.4,7.9628]
[1745717455956,1.09246,1830.0,1829.7,1.09257]
[1745717456135,3.3021,1829.9,1829.7,1.09257]
[1745717456340,1.09255,1829.8,1829.5,4.35681]
[1745717456642,3.3021,1829.7,1829.5,4.35681]
[1745717457135,3.3021,1829.7,1829.6,1.09267]
[1745717457437,3.3021,1829.7,1829.5,4.35679]
[1745717457640,3.3021,1829.7,1829.6,1.09267]
[1745717458835,3.3021,1829.7,1829.5,4.35681]
[1745717459040,3.3021,1829.7,1829.4,9.05557]
[1745717459341,4.39474,1829.7,1829.4,9.05557]
[1745717459536,3.3021,1829.7,1829.4,7.9628]
[1745717459737,3.3432,1829.6,1829.4,7.9628]
[1745717459938,3.2072,1829.5,1829.4,4.755]
[1745717460140,4.29996,1829.5,1829.3,3.2664]
[1745717460336,3.2072,1829.5,1829.1,4.746]
[1745717460536,1.09293,1829.2,1829.0,3.2078]
[1745717460840,1.09281,1829.4,1829.0,3.2078]
[1745717461043,4.44691,1829.4,1829.2,1.09289]
[1745717461344,4.44691,1829.4,1829.2,1.09291]
[1745717461543,3.3541,1829.4,1829.3,1.09285]
[1745717461844,4.43591,1829.6,1829.2,3.2078]
[1745717461845,3.3432,1829.6,1829.2,3.2078]
[1745717462042,3.3432,1829.6,1829.5,1.09273]
[1745717462234,6.6973,1829.6,1829.1,3.2229]
[1745717462444,1.09281,1829.4,1829.0,3.2078]
[1745717462735,3.3541,1829.3,1829.2,1.09291]
[1745717462937,3.3541,1829.3,1829.1,1.09293]
[1745717463143,4.44696,1829.3,1829.0,4.3008]
[1745717463844,3.3541,1829.3,1829.1,1.09295]
[1745717464561,3.3541,1829.3,1829.1,1.09294]
[1745717465042,3.3541,1829.3,1829.2,1.09291]
[1745717465446,3.3541,1829.3,1829.1,1.09293]
[1745717465840,1.09308,1829.0,1828.7,1.09319]
[1745717466041,7.9306,1828.9,1828.6,1.09325]
[1745717466343,7.9306,1828.9,1828.7,1.0932]
[1745717466539,6.8375,1828.9,1828.8,1.09315]
[1745717467245,6.8375,1828.9,1828.5,7.60289]
[1745717467541,4.30098,1828.8,1828.6,1.09327]
[1745717467774,3.2339,1828.7,1828.6,1.09327]
[1745717467945,3.4241,1828.9,1828.8,1.09315]
[1745717468148,3.2078,1829.0,1828.9,1.09309]
[1745717468446,3.2339,1829.1,1828.7,3.2078]
[1745717468641,4.32688,1829.1,1828.9,1.09306]
[1745717468844,3.2339,1829.1,1828.8,3.2403]
[1745717469045,4.32688,1829.1,1828.8,3.2403]
[1745717469246,4.32688,1829.1,1828.8,4.33341]
[1745717469440,1.09306,1829.0,1828.7,3.2078]
[1745717469640,3.1553,1828.9,1828.8,1.09315]
[1745717469841,1.09319,1828.8,1828.5,1.09329]
[1745717470044,3.1553,1828.7,1828.6,1.09327]
[1745717470982,12.42722,1829.1,1828.4,9.18921]
[1745717471247,1.09312,1828.9,1828.7,1.09319]
[1745717471448,3.1553,1828.8,1828.6,1.09323]
[1745717471645,4.24845,1828.8,1828.6,1.09323]
[1745717471847,3.1553,1828.8,1828.7,1.09321]
[1745717472253,7.67922,1829.1,1828.9,1.09305]
[1745717472548,3.1553,1829.0,1828.9,1.09305]
[1745717473252,3.1553,1829.0,1828.8,1.09311]
[1745717473439,4.24833,1829.0,1828.8,1.09311]
[1745717473646,7.67922,1829.1,1828.7,3.2998]
[1745717473944,1.09274,1829.5,1829.3,1.09283]
[1745717474163,6.4117,1829.6,1829.5,1.09273]
[1745717474345,9.64512659,1830.1,1829.4,3.2078]
[1745717474646,3.2242,1829.9,1829.8,1.09255]
[1745717474944,3.2242,1829.9,1829.7,4.39238]
[1745717475147,3.2242,1829.9,1829.8,1.09255]
[1745717475347,8.55273659,1830.1,1830.0,1.09243]
[1745717475550,16.77693659,1830.1,1829.4,3.2078]
[1745717475753,3.2078,1828.6,1827.3,3.3597]
[1745717476047,3.2078,1827.6,1827.3,3.3597]
[1745717476281,3.2078,1827.6,1827.4,4.749]
[1745717476556,3.2078,1827.6,1827.5,3.3597]
[1745717476557,4.30167,1827.6,1827.5,3.3597]
[1745717476759,4.30167,1827.6,1827.0,17.43745322]
[1745717476760,8.2078,1827.6,1827.0,14.04625322]
[1745717477054,3.2078,1827.1,1827.0,14.04625322]
[1745717477393,4.30197,1827.1,1827.0,14.04625322]
[1745717477554,7.72817,1827.1,1827.0,14.04625322]
[1745717478254,6.634,1827.1,1827.0,14.04625322]
[1745717478747,7.72817,1827.1,1827.0,14.04625322]
[1745717478945,7.72817,1827.1,1826.6,128.21500689]
[1745717478946,8.21259,1827.0,1826.6,73.73925577]
[1745717479149,4.30251,1826.2,1826.1,3.86098246]
[1745717479349,1.09519,1825.4,1825.3,39.957311]
[1745717479645,2.7371,1826.0,1825.1,7.19595678]
[1745717479646,1.09531,1825.2,1825.1,7.19595678]
[1745717480248,4.30311,1825.2,1825.1,7.19595678]
[1745717480755,1.09537,1825.1,1825.0,9.51570518]
[1745717480955,1.09537,1825.1,1825.0,6.08759518]
[1745717481155,1.09537,1825.1,1825.0,3.33956518]
[1745717481457,1.09537,1825.1,1825.0,1.78481518]
[1745717481643,1.09543,1825.0,1824.9,12.71996357]
[1745717481849,1.09549,1824.9,1824.8,17.98989196]